[Event "106th British-ch Major 2019"]
[Site "Torquay"]
[Date "2019.07.28"]
[Round "2.20"]
[White "Menadue, Jeremy F S"]
[Black "Lim, Mark"]
[Result "1/2-1/2"]
[ECO "D36"]
[WhiteElo "2016"]
[BlackElo "2265"]
[Annotator "NA"]
[PlyCount "51"]
[EventDate "2019.07.27"]
[EventType "swiss"]
[EventCountry "GBR"]
[SourceTitle "playchess.com"]
[Source "ChessBase"]
[SourceQuality "1"]
[TimeControl "40/5400+30:1800+30"]

1. d4 {[%emt 0:00:11]} Nf6 {[%emt 0:00:00]} 2. c4 {[%emt 0:00:38]} e6 {[%emt 0:00:00]} 3. Nc3 {[%emt 0:00:18]} d5 {[%emt 0:00:00]} 4. Bg5 {[%emt 0:00:40]} Be7 {[%emt 0:00:00]} 5. e3 {[%emt 0:01:21]} Nbd7 {[%emt 0:01:21]} 6. cxd5 {[%emt 0:00:59]} exd5 {[%emt 0:00:31]} 7. Qc2 {[%emt 0:00:41]} c6 {[%emt 0:00:13]} 8. Bd3 {[%emt 0:00:14]} O-O {[%emt 0:00:08]} 9. Nge2 {[%emt 0:02:04]} Re8 {[%emt 0:01:21]} 10. f3 {[%emt 0:03:55]} Nf8 {[%emt 0:01:35]} 11. O-O {[%emt 0:00:26]} Be6 {[%emt 0:00:19]} 12. Kh1 {[%emt 0:06:29]} Rc8 {[%emt 0:06:41]} 13. Rad1 {[%emt 0:00:44]} N6d7 {[%emt 0:01:06]} 14. Bxe7 {[%emt 0:02:49]} Qxe7 {[%emt 0:00:07]} 15. Ng3 {[%emt 0:05:39]} Nb6 {[%emt 0:05:24]} 16. Qf2 {[%emt 0:05:11]} f6 {[%emt 0:05:32]} 17. Rfe1 {[%emt 0:01:19]} Nc4 {[%emt 0:03:33]} 18. Bxc4 {[%emt 0:08:23]} dxc4 {[%emt 0:00:15]} 19. e4 {[%emt 0:00:24]} a6 {[%emt 0:06:06]} 20. d5 {[%emt 0:09:54]} Bd7 {[%emt 0:00:37]} 21. dxc6 {[%emt 0:11:34]} Rxc6 {[%emt 0:03:13]} 22. Nh5 {[%emt 0:07:42]} Qf7 {[%emt 0:04:49]} 23. Nf4 {[%emt 0:03:09]} Ne6 {[%emt 0:03:11]} 24. Nfd5 {[%emt 0:04:04]} Nc5 {[%emt 0:04:38]} 25. Nb4 {[%emt 0:03:07]} Rcc8 {[%emt 0:02:38]} 26. Qg3 {[%emt 0:06:33]} 1/2-1/2

[Event "106th British-ch Major 2019"]
[Site "Torquay"]
[Date "2019.07.28"]
[Round "2.21"]
[White "Ward, Andy"]
[Black "Akeya-Price, Robert A"]
[Result "1/2-1/2"]
[ECO "D00"]
[WhiteElo "1822"]
[BlackElo "1974"]
[Annotator "NA RC"]
[PlyCount "66"]
[EventDate "2019.07.27"]
[EventType "swiss"]
[EventCountry "GBR"]
[SourceTitle "playchess.com"]
[Source "ChessBase"]
[SourceQuality "1"]
[TimeControl "40/5400+30:1800+30"]

1. d4 {[%emt 0:00:00]} Nf6 {[%emt 0:00:00]} 2. Nc3 {[%emt 0:00:00]} d5 {[%emt 0:00:00]} 3. Bf4 {[%emt 0:00:00]} c6 {[%emt 0:00:26]} 4. e3 {[%emt 0:00:00]} Bf5 {[%emt 0:00:22]} 5. f3 {[%emt 0:00:00]} e6 {[%emt 0:00:32]} 6. g4 {[%emt 0:00:09]} Bg6 {[%emt 0:00:06]} 7. h4 {[%emt 0:00:05]} h5 {[%emt 0:00:20]} 8. g5 {[%emt 0:00:06]} Ng8 {[%emt 0:01:21]} 9. Bd3 {[%emt 0:00:09]} Ne7 {[%emt 0:01:06]} 10. Bxg6 {[%emt 0:14:51]} Nxg6 {[%emt 0:00:09]} 11. Bg3 {[%emt 0:00:06]} Bd6 {[%emt 0:00:46]} 12. Bxd6 {[%emt 0:00:47]} Qxd6 {[%emt 0:00:07]} 13. f4 {[%emt 0:00:05]} Nd7 {[%emt 0:03:10]} 14. Nf3 {[%emt 0:03:08]} c5 {[%emt 0:04:41]} 15. Ne5 {[%emt 0:06:16]} Ndxe5 {[%emt 0:01:46]} 16. fxe5 {[%emt 0:00:15]} Qc6 {[%emt 0:01:07]} 17. Qf3 {[%emt 0:09:55]} Qb6 {[%emt 0:02:39]} 18. O-O-O {[%emt 0:01:05]} cxd4 {[%emt 0:01:30]} 19. exd4 {[%emt 0:00:09]} Ne7 {[%emt 0:00:59]} 20. Rhf1 {[%emt 0:00:12]} Rf8 {[%emt 0:07:44]} 21. Qxh5 {[%emt 0:00:45]} g6 {[%emt 0:00:18]} 22. Qe2 {[%emt 0:01:01]} a6 {[%emt 0:04:38]} 23. h5 {[%emt 0:07:00]} Nf5 {[%emt 0:05:09]} 24. Qd3 {[%emt 0:14:28]} Qd8 {[%emt 0:06:16]} 25. Rg1 {[%emt 0:04:13]} gxh5 {[%emt 0:00:32]} 26. g6 {[%emt 0:00:24]} fxg6 {[%emt 0:00:14]} 27. Rxg6 {[%emt 0:00:05]} Qd7 {[%emt 0:00:40]} 28. Ne2 {[%emt 0:10:28]} O-O-O {[%emt 0:08:09]} 29. Ng3 {[%emt 0:03:00]} h4 {[%emt 0:06:09]} 30. Nxf5 {[%emt 0:01:53]} Rxf5 {[%emt 0:00:08]} 31. Rh6 {[%emt 0:00:27]} Qe7 {[%emt 0:02:40]} 32. Kb1 {[%emt 0:02:10]} Rdf8 {[%emt 0:03:35]} 33. Qh3 {[%emt 0:01:33]} Rf3 {[%emt 0:10:07]} 1/2-1/2

[Event "106th British-ch Major 2019"]
[Site "Torquay"]
[Date "2019.07.28"]
[Round "2.22"]
[White "Cusick, Peter W"]
[Black "Merriman, James"]
[Result "1/2-1/2"]
[ECO "A75"]
[WhiteElo "1971"]
[BlackElo "1808"]
[Annotator "NA RC"]
[PlyCount "68"]
[EventDate "2019.07.27"]
[EventType "swiss"]
[EventCountry "GBR"]
[SourceTitle "playchess.com"]
[Source "ChessBase"]
[SourceQuality "1"]
[TimeControl "40/5400+30:1800+30"]

1. d4 {[%emt 0:00:00]} e6 {[%emt 0:01:27]} 2. Nf3 {[%emt 0:00:00]} Nf6 {[%emt 0:00:07]} 3. c4 {[%emt 0:00:00]} c5 {[%emt 0:00:06]} 4. d5 {[%emt 0:01:02]} d6 {[%emt 0:00:04]} 5. Nc3 {[%emt 0:00:54]} exd5 {[%emt 0:00:10]} 6. cxd5 {[%emt 0:00:45]} g6 {[%emt 0:00:11]} 7. e4 {[%emt 0:00:32]} a6 {[%emt 0:00:04]} 8. a4 {[%emt 0:00:20]} Bg4 {[%emt 0:00:07]} 9. Be2 {[%emt 0:00:18]} Bxf3 {[%emt 0:00:17]} 10. Bxf3 {[%emt 0:00:09]} Bg7 {[%emt 0:00:33]} 11. O-O {[%emt 0:00:36]} O-O {[%emt 0:00:13]} 12. Bf4 {[%emt 0:02:58]} Re8 {[%emt 0:01:54]} 13. Re1 {[%emt 0:02:54]} Qc7 {[%emt 0:06:40]} 14. e5 {[%emt 0:06:52]} dxe5 {[%emt 0:03:08]} 15. d6 {[%emt 0:00:26]} Qb6 {[%emt 0:03:24]} 16. Bxe5 {[%emt 0:07:13]} Nbd7 {[%emt 0:00:20]} 17. a5 {[%emt 0:11:49]} Qd8 {[%emt 0:02:25]} 18. Bg3 {[%emt 0:04:08]} Rb8 {[%emt 0:04:36]} 19. h3 {[%emt 0:09:30]} b5 {[%emt 0:03:46]} 20. axb6 {[%emt 0:05:38]} Qxb6 {[%emt 0:01:42]} 21. Ra2 {[%emt 0:09:20]} Rxe1+ {[%emt 0:05:26]} 22. Qxe1 {[%emt 0:00:03]} Re8 {[%emt 0:00:24]} 23. Qd2 {[%emt 0:01:47]} c4 {[%emt 0:07:08]} 24. Nd5 {[%emt 0:05:08]} Nxd5 {[%emt 0:04:28]} 25. Bxd5 {[%emt 0:00:32]} Qb3 {[%emt 0:03:13]} 26. Rxa6 {[%emt 0:13:03]} Bxb2 {[%emt 0:03:11]} 27. Ra7 {[%emt 0:01:42]} Rd8 {[%emt 0:12:48]} 28. Bxc4 {[%emt 0:03:19]} Qb8 {[%emt 0:01:31]} 29. Rc7 {[%emt 0:02:05]} Ne5 {[%emt 0:08:51]} 30. Qd5 {[%emt 0:03:14]} Qb4 {[%emt 0:01:51]} 31. Kh2 {[%emt 0:05:03]} Qxd6 {[%emt 0:04:03]} 32. Qxd6 {[%emt 0:00:37]} Rxd6 {[%emt 0:00:12]} 33. Rc5 {[%emt 0:00:20]} Nxc4 {[%emt 0:00:37]} 34. Rxc4 {[%emt 0:00:33]} Re6 {[%emt 0:00:59]} 1/2-1/2

[Event "106th British-ch Major 2019"]
[Site "Torquay"]
[Date "2019.07.28"]
[Round "2.23"]
[White "Forster, Matthew"]
[Black "Young, Daniel J"]
[Result "1/2-1/2"]
[ECO "D78"]
[WhiteElo "1825"]
[BlackElo "1971"]
[Annotator "NA RC"]
[PlyCount "124"]
[EventDate "2019.07.27"]
[EventType "swiss"]
[EventCountry "GBR"]
[SourceTitle "playchess.com"]
[Source "ChessBase"]
[SourceQuality "1"]
[TimeControl "40/5400+30:1800+30"]

1. c4 {[%emt 0:00:00]} c6 {[%emt 0:00:00]} 2. g3 {[%emt 0:00:01]} d5 {[%emt 0:00:00]} 3. Nf3 {[%emt 0:00:29]} Nf6 {[%emt 0:00:00]} 4. Bg2 {[%emt 0:00:17]} g6 {[%emt 0:00:10]} 5. b3 {[%emt 0:00:23]} Bg7 {[%emt 0:00:13]} 6. Bb2 {[%emt 0:00:11]} O-O {[%emt 0:00:10]} 7. O-O {[%emt 0:00:10]} Nbd7 {[%emt 0:00:05]} 8. d4 {[%emt 0:00:23]} b5 {[%emt 0:00:24]} 9. Nbd2 {[%emt 0:04:35]} bxc4 {[%emt 0:00:12]} 10. bxc4 {[%emt 0:00:28]} Ba6 {[%emt 0:04:48]} 11. Qa4 {[%emt 0:05:25]} Qc8 {[%emt 0:02:20]} 12. Ne5 {[%emt 0:07:36]} Nxe5 {[%emt 0:13:18]} 13. dxe5 {[%emt 0:00:24]} Nd7 {[%emt 0:00:34]} 14. cxd5 {[%emt 0:07:12]} cxd5 {[%emt 0:01:33]} 15. Bd4 {[%emt 0:07:14]} Nb6 {[%emt 0:11:56]} 16. Qa5 {[%emt 0:02:46]} Bxe2 {[%emt 0:19:46]} 17. Rfe1 {[%emt 0:02:17]} Qa6 {[%emt 0:01:28]} 18. Nb3 {[%emt 0:02:21]} e6 {[%emt 0:05:37]} 19. h4 {[%emt 0:12:21]} Rac8 {[%emt 0:04:06]} 20. Qd2 {[%emt 0:01:10]} Bb5 {[%emt 0:14:12]} 21. Nc5 {[%emt 0:01:23]} Nc4 {[%emt 0:05:35]} 22. Qf4 {[%emt 0:02:10]} Qa3 {[%emt 0:03:06]} 23. Nb3 {[%emt 0:03:58]} Nb2 {[%emt 0:01:49]} 24. Re3 {[%emt 0:01:39]} Nc4 {[%emt 0:02:23]} 25. Rf3 {[%emt 0:03:39]} Qe7 {[%emt 0:01:17]} 26. Bh3 {[%emt 0:04:01]} a5 {[%emt 0:00:26]} 27. a4 {[%emt 0:00:34]} Bd7 {[%emt 0:00:54]} 28. Kg2 {[%emt 0:00:36]} Qb4 {[%emt 0:01:20]} 29. h5 {[%emt 0:01:37]} Bxa4 {[%emt 0:01:34]} 30. hxg6 {[%emt 0:05:13]} fxg6 {[%emt 0:00:24]} 31. Bxe6+ {[%emt 0:02:36]} Kh8 {[%emt 0:00:08]} 32. Qh4 {[%emt 0:00:24]} Rxf3 {[%emt 0:01:22]} 33. Rh1 {[%emt 0:00:23]} h6 {[%emt 0:02:00]} 34. Qg5 {[%emt 0:01:00]} Qf8 {[%emt 0:01:12]} 35. Nc5 {[%emt 0:03:34]} Bc6 {[%emt 0:01:17]} 36. Bxc8 {[%emt 0:00:40]} Nxe5 {[%emt 0:01:25]} 37. Ne6 {[%emt 0:01:27]} Rxf2+ {[%emt 0:00:11]} 38. Bxf2 {[%emt 0:01:13]} Qf3+ {[%emt 0:00:07]} 39. Kg1 {[%emt 0:01:04]} Qxh1+ {[%emt 0:00:12]} 40. Kxh1 {[%emt 0:00:25]} hxg5 {[%emt 0:00:04]} 41. Bd4 {[%emt 0:32:18]} Bf6 {[%emt 0:31:48]} 42. Kg2 {[%emt 0:02:09]} Kg8 {[%emt 0:00:00]} 43. Nc7 {[%emt 0:00:00]} Kf7 {[%emt 0:00:00]} 44. Be6+ {[%emt 0:00:00]} Ke7 {[%emt 0:00:00]} 45. Bc5+ {[%emt 0:00:00]} Kd8 {[%emt 0:00:00]} 46. Nxd5 {[%emt 0:00:00]} Nd7 {[%emt 0:00:00]} 47. Be3 {[%emt 0:00:00]} a4 {[%emt 0:00:00]} 48. Kf2 {[%emt 0:00:00]} Bxd5 {[%emt 0:00:00]} 49. Bxd5 {[%emt 0:00:00]} Ke7 {[%emt 0:00:00]} 50. Ke2 {[%emt 0:00:00]} Kd6 {[%emt 0:00:00]} 51. Ba2 {[%emt 0:00:00]} Nc5 {[%emt 0:00:00]} 52. Bb1 {[%emt 0:00:00]} Bb2 {[%emt 0:01:16]} 53. g4 {[%emt 0:02:40]} a3 {[%emt 0:00:42]} 54. Bxc5+ {[%emt 0:00:45]} Kxc5 {[%emt 0:00:10]} 55. Kd2 {[%emt 0:00:15]} Kc4 {[%emt 0:02:04]} 56. Ba2+ {[%emt 0:00:19]} Kd4 {[%emt 0:00:09]} 57. Kc2 {[%emt 0:00:22]} Ke5 {[%emt 0:00:55]} 58. Kb1 {[%emt 0:00:28]} Bd4 {[%emt 0:00:25]} 59. Bg8 {[%emt 0:00:39]} Kf4 {[%emt 0:00:54]} 60. Be6 {[%emt 0:00:12]} Bc3 {[%emt 0:00:28]} 61. Ka2 {[%emt 0:00:20]} Bb2 {[%emt 0:00:16]} 62. Bc8 {[%emt 0:00:07]} Bc1 {[%emt 0:00:17]} 1/2-1/2

[Event "106th British-ch Major 2019"]
[Site "Torquay"]
[Date "2019.07.28"]
[Round "2.24"]
[White "Warren, Alex M"]
[Black "Lovell, William Pm"]
[Result "1/2-1/2"]
[ECO "A09"]
[WhiteElo "1967"]
[BlackElo "1777"]
[Annotator "NA"]
[PlyCount "54"]
[EventDate "2019.07.27"]
[EventType "swiss"]
[EventCountry "GBR"]
[SourceTitle "playchess.com"]
[Source "ChessBase"]
[SourceQuality "1"]
[TimeControl "40/5400+30:1800+30"]

1. Nf3 {[%emt 0:00:00]} d5 {[%emt 0:00:00]} 2. c4 {[%emt 0:00:09]} dxc4 {[%emt 0:00:00]} 3. e3 {[%emt 0:00:21]} Nf6 {[%emt 0:00:00]} 4. Bxc4 {[%emt 0:00:43]} e6 {[%emt 0:00:00]} 5. O-O {[%emt 0:00:51]} a6 {[%emt 0:00:26]} 6. b3 {[%emt 0:04:59]} b5 {[%emt 0:02:35]} 7. Be2 {[%emt 0:00:06]} Bb7 {[%emt 0:00:07]} 8. Bb2 {[%emt 0:01:07]} Be7 {[%emt 0:01:41]} 9. a4 {[%emt 0:03:52]} b4 {[%emt 0:00:53]} 10. d3 {[%emt 0:01:13]} O-O {[%emt 0:02:59]} 11. Nbd2 {[%emt 0:01:42]} Nbd7 {[%emt 0:04:07]} 12. Qc2 {[%emt 0:03:01]} Rc8 {[%emt 0:03:34]} 13. Rac1 {[%emt 0:08:26]} Nb6 {[%emt 0:07:39]} 14. e4 {[%emt 0:05:51]} Nfd7 {[%emt 0:05:18]} 15. a5 {[%emt 0:05:36]} Na8 {[%emt 0:00:35]} 16. Rfd1 {[%emt 0:03:01]} c5 {[%emt 0:02:49]} 17. Nc4 {[%emt 0:00:48]} Nc7 {[%emt 0:10:21]} 18. Qb1 {[%emt 0:14:06]} Nb5 {[%emt 0:04:13]} 19. d4 {[%emt 0:03:53]} cxd4 {[%emt 0:02:26]} 20. Bxd4 {[%emt 0:06:10]} Nxd4 {[%emt 0:02:52]} 21. Rxd4 {[%emt 0:01:45]} Bc5 {[%emt 0:02:27]} 22. Rd2 {[%emt 0:02:24]} Qe7 {[%emt 0:00:50]} 23. e5 {[%emt 0:03:06]} Nb8 {[%emt 0:08:15]} 24. Rcd1 {[%emt 0:02:56]} Rcd8 {[%emt 0:05:08]} 25. h4 {[%emt 0:05:15]} Bxf3 {[%emt 0:08:07]} 26. Bxf3 {[%emt 0:00:26]} Qxh4 {[%emt 0:00:15]} 27. Qc2 {[%emt 0:06:38]} Rxd2 {[%emt 0:03:24]} 1/2-1/2

[Event "106th British-ch Major 2019"]
[Site "Torquay"]
[Date "2019.07.28"]
[Round "2.25"]
[White "Wilson, Matthew R"]
[Black "Ashworth, Michael"]
[Result "0-1"]
[ECO "B23"]
[WhiteElo "1817"]
[BlackElo "1957"]
[Annotator "NA"]
[PlyCount "75"]
[EventDate "2019.07.27"]
[EventType "swiss"]
[EventCountry "GBR"]
[SourceTitle "playchess.com"]
[Source "ChessBase"]
[SourceQuality "1"]
[TimeControl "40/5400+30:1800+30"]

1. e4 {[%emt 0:00:00]} g6 {[%emt 0:00:00]} 2. Nc3 {[%emt 0:00:00]} Bg7 {[%emt 0:00:00]} 3. f4 {[%emt 0:00:00]} c5 {[%emt 0:00:01]} 4. Nf3 {[%emt 0:00:00]} Nc6 {[%emt 0:00:12]} 5. Bb5 {[%emt 0:00:00]} Nd4 {[%emt 0:00:42]} 6. O-O {[%emt 0:00:05]} Nxb5 {[%emt 0:00:59]} 7. Nxb5 {[%emt 0:00:05]} d5 {[%emt 0:01:17]} 8. e5 {[%emt 0:00:05]} Bg4 {[%emt 0:10:54]} 9. h3 {[%emt 0:03:27]} Bxf3 {[%emt 0:00:59]} 10. Qxf3 {[%emt 0:00:15]} a6 {[%emt 0:00:56]} 11. Nc3 {[%emt 0:03:49]} e6 {[%emt 0:00:28]} 12. a4 {[%emt 0:02:40]} Ne7 {[%emt 0:09:39]} 13. Qf2 {[%emt 0:03:52]} Rc8 {[%emt 0:07:56]} 14. d3 {[%emt 0:04:54]} O-O {[%emt 0:02:54]} 15. Bd2 {[%emt 0:13:59]} f6 {[%emt 0:13:13]} 16. exf6 {[%emt 0:00:59]} Bxf6 {[%emt 0:01:03]} 17. Rae1 {[%emt 0:01:41]} Nf5 {[%emt 0:03:58]} 18. Ne2 {[%emt 0:13:22]} Qd7 {[%emt 0:10:10]} 19. c3 {[%emt 0:01:41]} Qxa4 {[%emt 0:02:28]} 20. Rc1 {[%emt 0:13:46]} Qb5 {[%emt 0:05:13]} 21. g4 {[%emt 0:04:33]} Nd6 {[%emt 0:04:13]} 22. Qe3 {[%emt 0:01:57]} Rce8 {[%emt 0:01:21]} 23. Rb1 {[%emt 0:06:03]} c4 {[%emt 0:09:34]} 24. d4 {[%emt 0:06:11]} Ne4 {[%emt 0:00:42]} 25. Ng3 {[%emt 0:00:42]} Nxg3 {[%emt 0:01:12]} 26. Qxg3 {[%emt 0:00:06]} Qb3 {[%emt 0:00:40]} 27. f5 {[%emt 0:02:35]} Bxd4+ {[%emt 0:03:01]} 28. Kh2 {[%emt 0:04:17]} Qc2 {[%emt 0:00:38]} 29. Qg2 {[%emt 0:05:30]} Be5+ {[%emt 0:01:14]} 30. Kh1 {[%emt 0:00:26]} Qe4 {[%emt 0:00:24]} 31. Rbe1 {[%emt 0:01:30]} Qxg2+ {[%emt 0:02:18]} 32. Kxg2 {[%emt 0:00:01]} exf5 {[%emt 0:00:07]} 33. gxf5 {[%emt 0:00:50]} Bd6 {[%emt 0:00:48]} 34. fxg6 {[%emt 0:03:01]} hxg6 {[%emt 0:00:31]} 35. Rxe8 {[%emt 0:03:18]} Rxe8 {[%emt 0:00:05]} 36. Rf6 {[%emt 0:00:02]} Bc5 {[%emt 0:02:06]} 37. Bg5 {[%emt 0:02:10]} Be7 {[%emt 0:02:36]} 38. Rxg6+ {[%emt 0:00:00]} 0-1

[Event "106th British-ch Major 2019"]
[Site "Torquay"]
[Date "2019.07.28"]
[Round "2.27"]
[White "Gogia, Armaan"]
[Black "Fathallah, Joe"]
[Result "0-1"]
[ECO "C01"]
[WhiteElo "1754"]
[BlackElo "1952"]
[Annotator "NA RC"]
[PlyCount "112"]
[EventDate "2019.07.27"]
[EventType "swiss"]
[EventCountry "GBR"]
[SourceTitle "playchess.com"]
[Source "ChessBase"]
[SourceQuality "1"]
[TimeControl "40/5400+30:1800+30"]

1. e4 {[%emt 0:00:00]} e6 {[%emt 0:00:00]} 2. d4 {[%emt 0:00:00]} d5 {[%emt 0:00:00]} 3. exd5 {[%emt 0:00:00]} exd5 {[%emt 0:00:00]} 4. Bd3 {[%emt 0:00:00]} Bd6 {[%emt 0:00:22]} 5. Ne2 {[%emt 0:00:00]} Nf6 {[%emt 0:00:27]} 6. O-O {[%emt 0:00:00]} Bg4 {[%emt 0:00:41]} 7. f3 {[%emt 0:00:11]} Bh5 {[%emt 0:00:31]} 8. Bf4 {[%emt 0:01:44]} O-O {[%emt 0:00:33]} 9. c3 {[%emt 0:01:20]} Bg6 {[%emt 0:09:01]} 10. Qc2 {[%emt 0:02:05]} Bxd3 {[%emt 0:05:01]} 11. Qxd3 {[%emt 0:00:06]} Bxf4 {[%emt 0:00:20]} 12. Nxf4 {[%emt 0:00:05]} Qd6 {[%emt 0:01:24]} 13. Ne2 {[%emt 0:02:35]} Nbd7 {[%emt 0:01:13]} 14. Nd2 {[%emt 0:01:19]} Rfe8 {[%emt 0:01:38]} 15. Rae1 {[%emt 0:01:01]} c6 {[%emt 0:01:50]} 16. Ng3 {[%emt 0:02:31]} Rxe1 {[%emt 0:05:03]} 17. Rxe1 {[%emt 0:00:50]} Re8 {[%emt 0:00:14]} 18. Rxe8+ {[%emt 0:00:37]} Nxe8 {[%emt 0:00:18]} 19. Qe3 {[%emt 0:03:14]} Qe6 {[%emt 0:09:50]} 20. Kf2 {[%emt 0:00:57]} Nd6 {[%emt 0:01:26]} 21. h3 {[%emt 0:06:58]} Nb6 {[%emt 0:06:27]} 22. b3 {[%emt 0:02:16]} Nb5 {[%emt 0:05:52]} 23. Qd3 {[%emt 0:01:28]} g6 {[%emt 0:09:52]} 24. a4 {[%emt 0:03:48]} Nc7 {[%emt 0:03:48]} 25. f4 {[%emt 0:05:03]} f5 {[%emt 0:03:13]} 26. Nf3 {[%emt 0:04:48]} Nd7 {[%emt 0:01:01]} 27. Ne5 {[%emt 0:08:34]} Nf6 {[%emt 0:00:37]} 28. Ke2 {[%emt 0:00:49]} Ne4 {[%emt 0:01:05]} 29. Nxe4 {[%emt 0:00:52]} dxe4 {[%emt 0:01:38]} 30. Qc4 {[%emt 0:00:17]} Nd5 {[%emt 0:04:16]} 31. g3 {[%emt 0:01:23]} Qd6 {[%emt 0:04:23]} 32. b4 {[%emt 0:04:08]} a5 {[%emt 0:01:06]} 33. b5 {[%emt 0:04:09]} Qa3 {[%emt 0:01:35]} 34. bxc6 {[%emt 0:00:26]} Qb2+ {[%emt 0:00:35]} 35. Ke1 {[%emt 0:02:52]} bxc6 {[%emt 0:03:55]} 36. Nxc6 {[%emt 0:00:56]} Qxc3+ {[%emt 0:04:36]} 37. Qxc3 {[%emt 0:00:42]} Nxc3 {[%emt 0:00:07]} 38. Nxa5 {[%emt 0:01:30]} Nxa4 {[%emt 0:00:11]} 39. Nc4 {[%emt 0:01:56]} Nc3 {[%emt 0:01:59]} 40. Ne3 {[%emt 0:03:06]} Nb5 {[%emt 0:00:52]} 41. d5 {[%emt 0:30:48]} Kf7 {[%emt 0:39:56]} 42. Nc4 {[%emt 0:01:28]} Nc7 {[%emt 0:00:00]} 43. Ne3 {[%emt 0:00:00]} Ke7 {[%emt 0:00:00]} 44. g4 {[%emt 0:00:00]} fxg4 {[%emt 0:00:00]} 45. hxg4 {[%emt 0:00:00]} Kd6 {[%emt 0:00:00]} 46. f5 {[%emt 0:00:00]} gxf5 {[%emt 0:00:00]} 47. Nxf5+ {[%emt 0:00:00]} Kxd5 {[%emt 0:00:00]} 48. Ke2 {[%emt 0:00:00]} Ke5 {[%emt 0:00:00]} 49. Nh6 {[%emt 0:00:00]} Kf4 {[%emt 0:00:00]} 50. Ng8 {[%emt 0:00:00]} Nd5 {[%emt 0:00:00]} 51. Nh6 {[%emt 0:00:22]} Kg5 {[%emt 0:00:00]} 52. Nf7+ {[%emt 0:02:56]} Kxg4 {[%emt 0:00:00]} 53. Nd6 {[%emt 0:00:03]} Kf4 {[%emt 0:00:00]} 54. Nc4 {[%emt 0:00:13]} Kg3 {[%emt 0:00:00]} 55. Nd2 {[%emt 0:00:35]} e3 {[%emt 0:00:00]} 56. Nf1+ {[%emt 0:03:17]} Kg2 {[%emt 0:00:00]} 0-1

[Event "106th British-ch Major 2019"]
[Site "Torquay"]
[Date "2019.07.28"]
[Round "2.28"]
[White "Sheikh, Anum"]
[Black "Pink, Joshua"]
[Result "1/2-1/2"]
[ECO "B10"]
[WhiteElo "1693"]
[BlackElo "1907"]
[Annotator "NA RC"]
[PlyCount "129"]
[EventDate "2019.07.27"]
[EventType "swiss"]
[EventCountry "GBR"]
[SourceTitle "playchess.com"]
[Source "ChessBase"]
[SourceQuality "1"]
[TimeControl "40/5400+30:1800+30"]

1. e4 {[%emt 0:07:31]} c6 {[%emt 0:01:51]} 2. d3 {[%emt 0:00:57]} d5 {[%emt 0:00:25]} 3. Nd2 {[%emt 0:00:05]} e5 {[%emt 0:00:25]} 4. Ngf3 {[%emt 0:00:32]} Bd6 {[%emt 0:00:13]} 5. g3 {[%emt 0:00:24]} Nf6 {[%emt 0:03:28]} 6. Bg2 {[%emt 0:00:50]} O-O {[%emt 0:01:49]} 7. O-O {[%emt 0:00:26]} Nbd7 {[%emt 0:01:22]} 8. b3 {[%emt 0:02:38]} Nc5 {[%emt 0:13:20]} 9. Re1 {[%emt 0:01:08]} Bg4 {[%emt 0:04:50]} 10. Bb2 {[%emt 0:02:13]} Re8 {[%emt 0:02:54]} 11. h3 {[%emt 0:02:10]} Bh5 {[%emt 0:07:48]} 12. a4 {[%emt 0:12:28]} Qc7 {[%emt 0:04:32]} 13. g4 {[%emt 0:01:55]} Bg6 {[%emt 0:01:16]} 14. Nh4 {[%emt 0:00:14]} Ne6 {[%emt 0:02:47]} 15. Nxg6 {[%emt 0:03:34]} fxg6 {[%emt 0:04:10]} 16. Kh2 {[%emt 0:10:52]} Nf4 {[%emt 0:01:03]} 17. Nf1 {[%emt 0:02:54]} dxe4 {[%emt 0:01:49]} 18. Bxe4 {[%emt 0:02:11]} Bc5 {[%emt 0:03:30]} 19. Qf3 {[%emt 0:02:30]} Re7 {[%emt 0:03:56]} 20. Qg3 {[%emt 0:03:55]} Rf8 {[%emt 0:00:49]} 21. Ne3 {[%emt 0:02:24]} Nxe4 {[%emt 0:02:50]} 22. dxe4 {[%emt 0:00:35]} Ref7 {[%emt 0:00:58]} 23. Ba3 {[%emt 0:10:16]} Bxa3 {[%emt 0:01:00]} 24. Rxa3 {[%emt 0:00:07]} Qe7 {[%emt 0:02:04]} 25. Raa1 {[%emt 0:03:16]} Nxh3 {[%emt 0:00:15]} 26. Kxh3 {[%emt 0:05:39]} Rf3 {[%emt 0:00:11]} 27. Qxf3 {[%emt 0:00:05]} Rxf3+ {[%emt 0:00:06]} 28. Kg2 {[%emt 0:00:09]} Rf4 {[%emt 0:00:44]} 29. f3 {[%emt 0:00:13]} h5 {[%emt 0:01:18]} 30. Rh1 {[%emt 0:01:02]} hxg4 {[%emt 0:01:14]} 31. Nxg4 {[%emt 0:00:11]} Qc5 {[%emt 0:00:11]} 32. Kg3 {[%emt 0:03:25]} Qc3 {[%emt 0:01:16]} 33. Raf1 {[%emt 0:05:22]} Rxe4 {[%emt 0:00:09]} 34. Rf2 {[%emt 0:01:16]} Rf4 {[%emt 0:00:45]} 35. Rd1 {[%emt 0:02:12]} g5 {[%emt 0:00:58]} 36. Rd8+ {[%emt 0:01:38]} Kf7 {[%emt 0:01:04]} 37. Rd3 {[%emt 0:03:01]} Qa1 {[%emt 0:00:45]} 38. Rd7+ {[%emt 0:01:27]} Kf8 {[%emt 0:00:37]} 39. Rxb7 {[%emt 0:00:56]} e4 {[%emt 0:01:48]} 40. Kg2 {[%emt 0:05:41]} Qd1 {[%emt 0:03:46]} 41. Ne5 {[%emt 0:30:37]} exf3+ {[%emt 0:31:24]} 42. Nxf3 {[%emt 0:00:14]} g4 {[%emt 0:00:51]} 43. Nh2 {[%emt 0:00:00]} Rxf2+ {[%emt 0:00:00]} 44. Kxf2 {[%emt 0:00:00]} Qxc2+ {[%emt 0:00:00]} 45. Kg3 {[%emt 0:00:00]} c5 {[%emt 0:00:00]} 46. Nxg4 {[%emt 0:00:00]} Qd3+ {[%emt 0:00:16]} 47. Kf4 {[%emt 0:02:24]} Qd6+ {[%emt 0:00:00]} 48. Ne5 {[%emt 0:00:00]} g6 {[%emt 0:00:00]} 49. Rd7 {[%emt 0:00:00]} Qf6+ {[%emt 0:00:00]} 50. Ke4 {[%emt 0:00:00]} a6 {[%emt 0:00:00]} 51. Kd5 {[%emt 0:00:00]} Qb6 {[%emt 0:00:00]} 52. Rd6 {[%emt 0:00:00]} Qxb3+ {[%emt 0:00:00]} 53. Kxc5 {[%emt 0:00:00]} Qa3+ {[%emt 0:00:00]} 54. Kd5 {[%emt 0:00:00]} Qxa4 {[%emt 0:00:00]} 55. Nxg6+ {[%emt 0:00:00]} Kg7 {[%emt 0:00:00]} 56. Ne5 {[%emt 0:00:00]} Qb5+ {[%emt 0:00:00]} 57. Kd4 {[%emt 0:00:00]} a5 {[%emt 0:00:00]} 58. Nc4 {[%emt 0:00:00]} a4 {[%emt 0:00:43]} 59. Rb6 {[%emt 0:00:00]} Qd7+ {[%emt 0:00:19]} 60. Kc3 {[%emt 0:00:00]} Qh3+ {[%emt 0:00:16]} 61. Kb2 {[%emt 0:00:00]} a3+ {[%emt 0:06:29]} 62. Nxa3 {[%emt 0:00:00]} Qh2+ {[%emt 0:00:09]} 63. Kb3 {[%emt 0:00:00]} Qg3+ {[%emt 0:00:25]} 64. Ka4 {[%emt 0:00:00]} Qc7 {[%emt 0:01:18]} 65. Rb4 {[%emt 0:00:00]} 1/2-1/2